[Event "*** Titled Tuesday Blitz"]
[Site "Chess.com"]
[Date "2021.02.02"]
[Round "6"]
[White "ChristopherYoo"]
[Black "enriquetejedor"]
[Result "1-0"]
[WhiteElo "2849"]
[BlackElo "2515"]
[TimeControl "180+1"]
[EndTime "11:09:22 PST"]
[Termination "ChristopherYoo won on time"]

1. d4 {[%clk 0:03:00.9]} 1... d5 {[%clk 0:02:33.7]} 2. Nf3 {[%clk 0:02:59.7]}
2... Nf6 {[%clk 0:02:33.2]} 3. c4 {[%clk 0:02:58.6]} 3... c6 {[%clk 0:02:26.3]}
4. e3 {[%clk 0:02:54]} 4... g6 {[%clk 0:02:25.8]} 5. Bd3 {[%clk 0:02:49.8]} 5...
Bg7 {[%clk 0:02:19.6]} 6. O-O {[%clk 0:02:48.7]} 6... O-O {[%clk 0:02:15.5]} 7.
Nbd2 {[%clk 0:02:46]} 7... Bg4 {[%clk 0:02:11.6]} 8. h3 {[%clk 0:02:43.5]} 8...
Bxf3 {[%clk 0:02:10.9]} 9. Nxf3 {[%clk 0:02:42.1]} 9... Nbd7 {[%clk 0:02:11.8]}
10. b3 {[%clk 0:02:41.5]} 10... c5 {[%clk 0:02:07.4]} 11. Bb2 {[%clk 0:02:39.3]}
11... cxd4 {[%clk 0:01:52.8]} 12. Bxd4 {[%clk 0:02:38.3]} 12... dxc4 {[%clk
0:01:47.4]} 13. Bxc4 {[%clk 0:02:34.7]} 13... Qa5 {[%clk 0:01:47.2]} 14. a3
{[%clk 0:02:26.3]} 14... Rac8 {[%clk 0:01:44.7]} 15. b4 {[%clk 0:02:25.7]} 15...
Qf5 {[%clk 0:01:39.1]} 16. Qb3 {[%clk 0:02:19.8]} 16... e5 {[%clk 0:01:34.5]}
17. Bb2 {[%clk 0:02:14.2]} 17... Nb6 {[%clk 0:01:08.6]} 18. Nxe5 {[%clk
0:01:56.2]} 18... Ne4 {[%clk 0:00:48.5]} 19. Bxf7+ {[%clk 0:01:40.4]} 19... Rxf7
{[%clk 0:00:47.5]} 20. Nxf7 {[%clk 0:01:37.8]} 20... Qxf7 {[%clk 0:00:43.8]} 21.
Qxf7+ {[%clk 0:01:37.3]} 21... Kxf7 {[%clk 0:00:44.7]} 22. Bxg7 {[%clk
0:01:37.7]} 22... Kxg7 {[%clk 0:00:45.6]} 23. Rac1 {[%clk 0:01:37.7]} 23... Nc4
{[%clk 0:00:40.2]} 24. Rc2 {[%clk 0:01:32.2]} 24... b5 {[%clk 0:00:36]} 25. Rd1
{[%clk 0:01:26.1]} 25... Nf6 {[%clk 0:00:28.1]} 26. Rd4 {[%clk 0:01:20.3]} 26...
Re8 {[%clk 0:00:24.8]} 27. a4 {[%clk 0:01:19]} 27... a6 {[%clk 0:00:24.6]} 28.
Ra2 {[%clk 0:01:17.6]} 28... Re7 {[%clk 0:00:20]} 29. axb5 {[%clk 0:01:12.9]}
29... axb5 {[%clk 0:00:20.9]} 30. Kf1 {[%clk 0:01:05]} 30... Kf7 {[%clk
0:00:20.7]} 31. Ke2 {[%clk 0:01:03.2]} 31... Ne4 {[%clk 0:00:20.9]} 32. Kd3
{[%clk 0:00:56]} 32... Ned6 {[%clk 0:00:16.7]} 33. Ra6 {[%clk 0:00:51.4]} 33...
Ne5+ {[%clk 0:00:10.2]} 34. Ke2 {[%clk 0:00:50.9]} 34... Ndc4 {[%clk 0:00:11.1]}
35. Rd5 {[%clk 0:00:49.5]} 35... Rb7 {[%clk 0:00:08.6]} 36. f4 {[%clk 0:00:42]}
36... Nd7 {[%clk 0:00:09]} 37. e4 {[%clk 0:00:39.5]} 37... Nf6 {[%clk
0:00:08.2]} 38. Rd4 {[%clk 0:00:39.2]} 38... Nh5 {[%clk 0:00:06.4]} 39. Kf3
{[%clk 0:00:38.2]} 39... Nf6 {[%clk 0:00:05]} 40. e5 {[%clk 0:00:37.2]} 40...
Ne8 {[%clk 0:00:04.2]} 41. g4 {[%clk 0:00:34]} 41... Nc7 {[%clk 0:00:04.1]} 42.
Rd7+ {[%clk 0:00:21.9]} 42... Ke8 {[%clk 0:00:04.4]} 43. e6 {[%clk 0:00:21.9]}
43... Nxa6 {[%clk 0:00:03]} 44. Rxb7 {[%clk 0:00:22]} 44... Nxb4 {[%clk
0:00:03]} 45. Rxb5 {[%clk 0:00:17.5]} 45... Na6 {[%clk 0:00:02.6]} 46. f5 {[%clk
0:00:12.9]} 46... gxf5 {[%clk 0:00:02.3]} 47. gxf5 {[%clk 0:00:13.8]} 47... Ke7
{[%clk 0:00:01.9]} 48. Rb7+ {[%clk 0:00:12.3]} 48... Kf6 {[%clk 0:00:01.2]} 49.
Rf7+ {[%clk 0:00:12.4]} 49... Kg5 {[%clk 0:00:01.6]} 50. e7 {[%clk 0:00:13.3]}
50... Ne5+ {[%clk 0:00:02.1]} 51. Ke3 {[%clk 0:00:08.1]} 51... Nc7 {[%clk
0:00:02.4]} 52. Rf8 {[%clk 0:00:06.7]} 1-0

[Event "*** Titled Tuesday Blitz"]
[Site "Chess.com"]
[Date "2021.02.02"]
[Round "6"]
[White "almo64"]
[Black "awesomevishesh"]
[Result "1-0"]
[WhiteElo "2718"]
[BlackElo "2500"]
[TimeControl "180+1"]
[EndTime "11:09:23 PST"]
[Termination "almo64 won by resignation"]

1. d4 {[%clk 0:02:56.1]} 1... Nf6 {[%clk 0:02:51.7]} 2. Nc3 {[%clk 0:02:55.9]}
2... d5 {[%clk 0:02:51.4]} 3. Bf4 {[%clk 0:02:55.8]} 3... g6 {[%clk 0:02:50.6]}
4. Nb5 {[%clk 0:02:54.2]} 4... Na6 {[%clk 0:02:50.1]} 5. e3 {[%clk 0:02:54.4]}
5... Bg7 {[%clk 0:02:49.9]} 6. h3 {[%clk 0:02:53.8]} 6... O-O {[%clk 0:02:49.3]}
7. Nf3 {[%clk 0:02:52.8]} 7... c6 {[%clk 0:02:48.9]} 8. Nc3 {[%clk 0:02:52.3]}
8... Nb8 {[%clk 0:02:48.6]} 9. Bd3 {[%clk 0:02:51.1]} 9... Nbd7 {[%clk
0:02:41.7]} 10. Bh2 {[%clk 0:02:46]} 10... b5 {[%clk 0:02:35.3]} 11. O-O {[%clk
0:02:43.3]} 11... a5 {[%clk 0:02:34.9]} 12. a3 {[%clk 0:02:39.3]} 12... Nb6
{[%clk 0:02:30.5]} 13. Re1 {[%clk 0:02:34.4]} 13... Nc4 {[%clk 0:02:25.6]} 14.
b3 {[%clk 0:02:26]} 14... Nb2 {[%clk 0:02:24.7]} 15. Qd2 {[%clk 0:02:19.7]}
15... Nxd3 {[%clk 0:02:24.5]} 16. cxd3 {[%clk 0:02:19.7]} 16... Nd7 {[%clk
0:02:18.1]} 17. Rac1 {[%clk 0:02:10]} 17... Re8 {[%clk 0:02:10.6]} 18. e4 {[%clk
0:02:04.8]} 18... dxe4 {[%clk 0:02:06]} 19. dxe4 {[%clk 0:02:04.5]} 19... Nb6
{[%clk 0:02:03.1]} 20. Qe3 {[%clk 0:01:55.3]} 20... b4 {[%clk 0:02:00.9]} 21.
Nb1 {[%clk 0:01:46.3]} 21... Bb7 {[%clk 0:01:53.4]} 22. axb4 {[%clk 0:01:34]}
22... axb4 {[%clk 0:01:52.9]} 23. Qd2 {[%clk 0:01:34.3]} 23... Ra5 {[%clk
0:01:17]} 24. Qxb4 {[%clk 0:01:27.9]} 24... Rb5 {[%clk 0:01:16.6]} 25. Qc3
{[%clk 0:01:16.4]} 25... c5 {[%clk 0:01:16.2]} 26. Na3 {[%clk 0:01:14.3]} 26...
cxd4 {[%clk 0:01:14.7]} 27. Qc7 {[%clk 0:01:04.7]} 27... Qxc7 {[%clk 0:01:05]}
28. Rxc7 {[%clk 0:01:03.7]} 28... Rxb3 {[%clk 0:00:18.6]} 29. Rxb7 {[%clk
0:01:02.9]} 29... Rxa3 {[%clk 0:00:15.1]} 30. Rxb6 {[%clk 0:01:02.8]} 30... e5
{[%clk 0:00:13.7]} 31. Rd1 {[%clk 0:00:53.7]} 31... f6 {[%clk 0:00:13.2]} 32.
Ne1 {[%clk 0:00:52]} 32... Kf7 {[%clk 0:00:11.9]} 33. Rb7+ {[%clk 0:00:50.8]}
33... Re7 {[%clk 0:00:10.3]} 34. Rdb1 {[%clk 0:00:50.6]} 34... Bf8 {[%clk
0:00:09.3]} 35. R7b3 {[%clk 0:00:47.8]} 35... Rea7 {[%clk 0:00:07.9]} 36. Kf1
{[%clk 0:00:46.5]} 36... h5 {[%clk 0:00:06.6]} 37. Rb7+ {[%clk 0:00:42.4]} 37...
Ke6 {[%clk 0:00:04.5]} 38. R1b6+ {[%clk 0:00:41.2]} 38... Bd6 {[%clk 0:00:04.4]}
39. Rxa7 {[%clk 0:00:35.9]} 39... Rxa7 {[%clk 0:00:05.3]} 40. Nd3 {[%clk
0:00:32.2]} 40... Kd7 {[%clk 0:00:05.4]} 41. Rb1 {[%clk 0:00:29.4]} 41... Ra3
{[%clk 0:00:05.2]} 42. Ke2 {[%clk 0:00:28.5]} 42... Ra2+ {[%clk 0:00:05]} 43.
Rb2 {[%clk 0:00:29.1]} 43... Ra3 {[%clk 0:00:04.8]} 44. f3 {[%clk 0:00:29.1]}
44... Ke6 {[%clk 0:00:04.1]} 45. Bg3 {[%clk 0:00:25.8]} 45... g5 {[%clk
0:00:03.7]} 46. Be1 {[%clk 0:00:24.1]} 46... h4 {[%clk 0:00:03.5]} 47. Rb6
{[%clk 0:00:22.7]} 47... Kd7 {[%clk 0:00:03]} 48. Rxd6+ {[%clk 0:00:22.3]} 48...
Kxd6 {[%clk 0:00:02.3]} 49. Bb4+ {[%clk 0:00:22.5]} 49... Ke6 {[%clk 0:00:02.5]}
50. Bxa3 {[%clk 0:00:22.2]} 1-0

[Event "*** Titled Tuesday Blitz"]
[Site "Chess.com"]
[Date "2021.02.02"]
[Round "6"]
[White "Chuchofrio1"]
[Black "Das_Virus_2020"]
[Result "1-0"]
[WhiteElo "2283"]
[BlackElo "2412"]
[TimeControl "180+1"]
[EndTime "11:09:23 PST"]
[Termination "Chuchofrio1 won by resignation"]

1. e4 {[%clk 0:03:00.9]} 1... e6 {[%clk 0:02:59.9]} 2. d4 {[%clk 0:03:00.3]}
2... d5 {[%clk 0:03:00.2]} 3. Nc3 {[%clk 0:02:59.7]} 3... Nf6 {[%clk 0:03:00.3]}
4. Bg5 {[%clk 0:02:57.1]} 4... Be7 {[%clk 0:02:59.8]} 5. e5 {[%clk 0:02:56.5]}
5... Nfd7 {[%clk 0:02:59.6]} 6. Bxe7 {[%clk 0:02:57.4]} 6... Qxe7 {[%clk
0:02:59]} 7. Qh5 {[%clk 0:02:56]} 7... a6 {[%clk 0:02:57.5]} 8. O-O-O {[%clk
0:02:54.7]} 8... c5 {[%clk 0:02:18.6]} 9. f4 {[%clk 0:02:51.3]} 9... cxd4 {[%clk
0:02:15.5]} 10. Rxd4 {[%clk 0:02:52.2]} 10... Nc6 {[%clk 0:02:15.9]} 11. Rd1
{[%clk 0:02:50.8]} 11... b5 {[%clk 0:02:12.1]} 12. Nf3 {[%clk 0:02:30.3]} 12...
b4 {[%clk 0:02:01.4]} 13. Ne2 {[%clk 0:02:22.8]} 13... Nc5 {[%clk 0:02:01]} 14.
Ned4 {[%clk 0:02:06.5]} 14... Nxd4 {[%clk 0:01:59.2]} 15. Nxd4 {[%clk
0:02:07.4]} 15... Ne4 {[%clk 0:01:59]} 16. Rg1 {[%clk 0:01:46.4]} 16... Bb7
{[%clk 0:01:48.4]} 17. Bd3 {[%clk 0:01:37]} 17... O-O-O {[%clk 0:01:13.3]} 18.
Qe2 {[%clk 0:01:30.5]} 18... Nc5 {[%clk 0:01:11.8]} 19. Nb3 {[%clk 0:01:26.1]}
19... Nxd3+ {[%clk 0:00:48.7]} 20. Qxd3 {[%clk 0:01:27]} 20... Kb8 {[%clk
0:00:47.4]} 21. Qd4 {[%clk 0:01:25.2]} 21... Qc7 {[%clk 0:00:47.5]} 22. Qxb4
{[%clk 0:01:17.7]} 22... Rc8 {[%clk 0:00:45.5]} 23. Rd2 {[%clk 0:01:14.9]} 23...
Rhd8 {[%clk 0:00:43.1]} 24. Rgd1 {[%clk 0:01:10.6]} 24... Ka8 {[%clk 0:00:41.2]}
25. Kb1 {[%clk 0:01:02.9]} 25... Bc6 {[%clk 0:00:40.8]} 26. Rd3 {[%clk
0:00:56.3]} 26... Qb7 {[%clk 0:00:38.9]} 27. Qa3 {[%clk 0:00:54.6]} 27... Bb5
{[%clk 0:00:37]} 28. Rd4 {[%clk 0:00:41.8]} 28... Qb6 {[%clk 0:00:32.9]} 29. Rb4
{[%clk 0:00:36.6]} 29... Rc4 {[%clk 0:00:19.4]} 30. Nd4 {[%clk 0:00:28]} 30...
Rxb4 {[%clk 0:00:16.5]} 31. Qxb4 {[%clk 0:00:28.9]} 31... Rc8 {[%clk 0:00:14.9]}
32. a4 {[%clk 0:00:22.4]} 32... Rc4 {[%clk 0:00:02.5]} 33. Qf8+ {[%clk
0:00:19.3]} 33... Ka7 {[%clk 0:00:02.6]} 34. Qxf7+ {[%clk 0:00:18]} 34... Rc7
{[%clk 0:00:03.1]} 35. Qxe6 {[%clk 0:00:15.4]} 35... Bxa4 {[%clk 0:00:03.6]} 36.
Qxb6+ {[%clk 0:00:14.8]} 36... Kxb6 {[%clk 0:00:04.5]} 37. b3 {[%clk 0:00:15.3]}
37... Be8 {[%clk 0:00:04.6]} 38. Ne6 {[%clk 0:00:15.7]} 38... Re7 {[%clk
0:00:04.5]} 39. Ng5 {[%clk 0:00:15.2]} 39... h6 {[%clk 0:00:04.2]} 40. Nf3
{[%clk 0:00:15.4]} 40... g5 {[%clk 0:00:04.3]} 41. Rxd5 {[%clk 0:00:14.9]} 41...
gxf4 {[%clk 0:00:04]} 42. Rd6+ {[%clk 0:00:15.6]} 42... Kc7 {[%clk 0:00:03.8]}
43. Rxh6 {[%clk 0:00:16.5]} 43... Bc6 {[%clk 0:00:03.9]} 44. Rf6 {[%clk
0:00:13.1]} 44... Bxf3 {[%clk 0:00:03.8]} 45. gxf3 {[%clk 0:00:14]} 45... Rxe5
{[%clk 0:00:04.7]} 46. Rxf4 {[%clk 0:00:14.3]} 46... Rh5 {[%clk 0:00:04.3]} 47.
h4 {[%clk 0:00:14.9]} 47... Kb6 {[%clk 0:00:05]} 48. c4 {[%clk 0:00:14.7]} 48...
Re5 {[%clk 0:00:05]} 49. Re4 {[%clk 0:00:14.1]} 49... Rf5 {[%clk 0:00:04.9]} 50.
f4 {[%clk 0:00:11.8]} 50... Rh5 {[%clk 0:00:04.8]} 51. Re6+ {[%clk 0:00:12.3]}
51... Ka5 {[%clk 0:00:04.5]} 52. Re5+ {[%clk 0:00:12.8]} 1-0

[Event "*** Titled Tuesday Blitz"]
[Site "Chess.com"]
[Date "2021.02.02"]
[Round "6"]
[White "ElCoachRene"]
[Black "chess4ever007"]
[Result "0-1"]
[WhiteElo "2202"]
[BlackElo "2366"]
[TimeControl "180+1"]
[EndTime "11:09:23 PST"]
[Termination "chess4ever007 won by resignation"]

1. d4 {[%clk 0:03:00.9]} 1... Nf6 {[%clk 0:02:15.3]} 2. Bf4 {[%clk 0:03:01.1]}
2... g6 {[%clk 0:02:14.3]} 3. e3 {[%clk 0:03:01.4]} 3... Bg7 {[%clk 0:02:14.6]}
4. Nf3 {[%clk 0:03:01.7]} 4... O-O {[%clk 0:02:14.7]} 5. Nbd2 {[%clk 0:03:01.8]}
5... d6 {[%clk 0:02:14]} 6. h3 {[%clk 0:03:01.8]} 6... c5 {[%clk 0:02:12.9]} 7.
c3 {[%clk 0:03:00.6]} 7... b6 {[%clk 0:02:12.7]} 8. Bd3 {[%clk 0:02:59.2]} 8...
Bb7 {[%clk 0:02:13.1]} 9. Qe2 {[%clk 0:02:59.6]} 9... a6 {[%clk 0:02:12.3]} 10.
a4 {[%clk 0:02:57.9]} 10... Nbd7 {[%clk 0:02:12.2]} 11. O-O {[%clk 0:02:57.9]}
11... Re8 {[%clk 0:02:04.1]} 12. Bg5 {[%clk 0:02:49.5]} 12... h6 {[%clk
0:01:57.2]} 13. Bh4 {[%clk 0:02:48.8]} 13... Qc7 {[%clk 0:01:50.1]} 14. Rfd1
{[%clk 0:02:48.1]} 14... e5 {[%clk 0:01:26.8]} 15. dxe5 {[%clk 0:02:49]} 15...
Nxe5 {[%clk 0:01:26]} 16. Nxe5 {[%clk 0:02:43.9]} 16... dxe5 {[%clk 0:01:21.1]}
17. Bg3 {[%clk 0:02:41.9]} 17... Qc6 {[%clk 0:01:16.5]} 18. Qf1 {[%clk
0:02:33.1]} 18... Rad8 {[%clk 0:01:08]} 19. Be2 {[%clk 0:02:22.7]} 19... Qe6
{[%clk 0:00:47.1]} 20. Bxa6 {[%clk 0:02:18.2]} 20... Bxa6 {[%clk 0:00:43]} 21.
Qxa6 {[%clk 0:02:19.1]} 21... e4 {[%clk 0:00:42.2]} 22. a5 {[%clk 0:02:07.3]}
22... bxa5 {[%clk 0:00:38.8]} 23. Qxe6 {[%clk 0:02:05.7]} 23... Rxe6 {[%clk
0:00:38.9]} 24. Nc4 {[%clk 0:02:02.5]} 24... Rxd1+ {[%clk 0:00:34]} 25. Rxd1
{[%clk 0:02:01.9]} 25... Nh5 {[%clk 0:00:33]} 26. Rd8+ {[%clk 0:01:52.8]} 26...
Kh7 {[%clk 0:00:32.4]} 27. Bd6 {[%clk 0:01:48.4]} 27... a4 {[%clk 0:00:31.6]}
28. Bxc5 {[%clk 0:01:39.6]} 28... Rc6 {[%clk 0:00:31.1]} 29. Rd5 {[%clk
0:01:34.9]} 29... Nf6 {[%clk 0:00:29.7]} 30. Re5 {[%clk 0:01:33.9]} 30... Nd7
{[%clk 0:00:29.2]} 31. Re7 {[%clk 0:01:28.5]} 31... Nxc5 {[%clk 0:00:28.1]} 32.
Rxf7 {[%clk 0:01:27.2]} 32... Nd3 {[%clk 0:00:28.5]} 33. Na5 {[%clk 0:01:23.4]}
33... Ra6 {[%clk 0:00:28.7]} 34. Nb7 {[%clk 0:01:21.4]} 34... Nxb2 {[%clk
0:00:27.9]} 35. Nc5 {[%clk 0:01:17]} 35... Rc6 {[%clk 0:00:27.6]} 36. Nxe4
{[%clk 0:01:12.2]} 36... a3 {[%clk 0:00:27.2]} 37. Ra7 {[%clk 0:01:07.8]} 37...
Nc4 {[%clk 0:00:27.4]} 38. g4 {[%clk 0:01:03.8]} 38... g5 {[%clk 0:00:27.3]} 39.
f4 {[%clk 0:01:02.7]} 39... Nxe3 {[%clk 0:00:25.7]} 40. fxg5 {[%clk 0:00:58.7]}
40... hxg5 {[%clk 0:00:25.5]} 41. Nxg5+ {[%clk 0:00:58]} 41... Kg6 {[%clk
0:00:25.9]} 42. Nf3 {[%clk 0:00:52.3]} 42... Nc2 {[%clk 0:00:25.7]} 43. Nh4+
{[%clk 0:00:48.6]} 43... Kg5 {[%clk 0:00:25.4]} 44. Nf3+ {[%clk 0:00:46.9]}
44... Kf4 {[%clk 0:00:24.3]} 45. Nh4 {[%clk 0:00:39.8]} 45... Bxc3 {[%clk
0:00:23.5]} 46. Ra4+ {[%clk 0:00:36.7]} 46... Kg3 {[%clk 0:00:21.9]} 47. Nf5+
{[%clk 0:00:33.3]} 47... Kxh3 {[%clk 0:00:22.2]} 48. g5 {[%clk 0:00:33.1]} 48...
Be1 {[%clk 0:00:18.4]} 49. Kf1 {[%clk 0:00:31.5]} 49... Bg3 {[%clk 0:00:17.8]}
50. g6 {[%clk 0:00:29.3]} 50... Rxg6 {[%clk 0:00:17.6]} 51. Ke2 {[%clk
0:00:25.4]} 51... Rf6 {[%clk 0:00:17.1]} 52. Ng7 {[%clk 0:00:18.2]} 52... Rf2+
{[%clk 0:00:15.8]} 53. Kd3 {[%clk 0:00:18.6]} 53... Ne1+ {[%clk 0:00:15.7]} 54.
Ke3 {[%clk 0:00:18.1]} 54... a2 {[%clk 0:00:16.6]} 55. Nf5 {[%clk 0:00:14.2]}
55... Rxf5 {[%clk 0:00:15.2]} 56. Rxa2 {[%clk 0:00:13.1]} 56... Ng2+ {[%clk
0:00:14.5]} 57. Ke4 {[%clk 0:00:12.9]} 57... Rf4+ {[%clk 0:00:14.9]} 58. Ke5
{[%clk 0:00:13.4]} 58... Rf2+ {[%clk 0:00:15.1]} 0-1

[Event "*** Titled Tuesday Blitz"]
[Site "Chess.com"]
[Date "2021.02.02"]
[Round "6"]
[White "saraswathii"]
[Black "IDontWannaRecognized"]
[Result "0-1"]
[WhiteElo "2399"]
[BlackElo "2282"]
[TimeControl "180+1"]
[EndTime "11:09:25 PST"]
[Termination "IDontWannaRecognized won by resignation"]

1. e4 {[%clk 0:03:00.9]} 1... c6 {[%clk 0:02:58.6]} 2. d3 {[%clk 0:02:59.1]}
2... d5 {[%clk 0:02:58.7]} 3. Nd2 {[%clk 0:02:55.4]} 3... e5 {[%clk 0:02:58.4]}
4. Ngf3 {[%clk 0:02:55.5]} 4... Bd6 {[%clk 0:02:58.1]} 5. g3 {[%clk 0:02:55.2]}
5... Nf6 {[%clk 0:02:55.1]} 6. Bg2 {[%clk 0:02:54.7]} 6... Nbd7 {[%clk
0:02:49.7]} 7. O-O {[%clk 0:02:52.1]} 7... O-O {[%clk 0:02:47.6]} 8. Qe2 {[%clk
0:02:48.8]} 8... a5 {[%clk 0:02:46.1]} 9. a4 {[%clk 0:02:47.2]} 9... Re8 {[%clk
0:02:39.1]} 10. Nh4 {[%clk 0:02:39.9]} 10... Nc5 {[%clk 0:02:33.7]} 11. Nb3
{[%clk 0:02:33.7]} 11... Nxb3 {[%clk 0:02:28.1]} 12. cxb3 {[%clk 0:02:34.6]}
12... b6 {[%clk 0:02:28.2]} 13. Bg5 {[%clk 0:02:27.7]} 13... h6 {[%clk
0:02:25.3]} 14. Bxf6 {[%clk 0:02:26.4]} 14... Qxf6 {[%clk 0:02:24.8]} 15. exd5
{[%clk 0:02:26.9]} 15... g5 {[%clk 0:02:19.7]} 16. Nf3 {[%clk 0:02:21.2]} 16...
cxd5 {[%clk 0:02:19.7]} 17. Nd2 {[%clk 0:02:19.6]} 17... e4 {[%clk 0:02:14.8]}
18. dxe4 {[%clk 0:02:16.2]} 18... Ba6 {[%clk 0:02:14.7]} 19. Qf3 {[%clk
0:02:07.3]} 19... Qxf3 {[%clk 0:02:13]} 20. Bxf3 {[%clk 0:02:05.2]} 20... Bxf1
{[%clk 0:02:11.9]} 21. Rxf1 {[%clk 0:02:01.7]} 21... Bb4 {[%clk 0:02:12.2]} 22.
Rd1 {[%clk 0:01:57.4]} 22... Bxd2 {[%clk 0:02:10.6]} 23. Rxd2 {[%clk 0:01:58.3]}
23... dxe4 {[%clk 0:02:11.3]} 24. Bg2 {[%clk 0:01:56.2]} 24... Rad8 {[%clk
0:02:02.1]} 25. Rxd8 {[%clk 0:01:44.5]} 25... Rxd8 {[%clk 0:02:03]} 26. Bxe4
{[%clk 0:01:43.2]} 26... Rd2 {[%clk 0:02:00]} 27. Kg2 {[%clk 0:01:39.5]} 27...
Kg7 {[%clk 0:01:56.1]} 28. Kf3 {[%clk 0:01:32.7]} 28... Rxb2 {[%clk 0:01:53.9]}
29. Bd5 {[%clk 0:01:31.1]} 29... f5 {[%clk 0:01:53.8]} 30. Ke3 {[%clk
0:01:24.8]} 30... Kf6 {[%clk 0:01:53.6]} 31. h4 {[%clk 0:01:23.5]} 31... Ke5
{[%clk 0:01:43.4]} 32. Bc4 {[%clk 0:01:19.7]} 32... f4+ {[%clk 0:01:36.5]} 33.
gxf4+ {[%clk 0:01:16.7]} 33... gxf4+ {[%clk 0:01:37.4]} 34. Kf3 {[%clk
0:01:15.7]} 34... h5 {[%clk 0:01:27.6]} 35. Bf7 {[%clk 0:01:12.3]} 35... Rb1
{[%clk 0:01:26.5]} 36. Kg2 {[%clk 0:01:08.1]} 36... Kf6 {[%clk 0:01:15]} 37. Bc4
{[%clk 0:01:01.9]} 37... Rb2 {[%clk 0:01:09.2]} 38. Kf3 {[%clk 0:01:00.3]} 38...
Ke5 {[%clk 0:01:09.5]} 39. Bf7 {[%clk 0:00:59.4]} 39... Rb1 {[%clk 0:01:07.3]}
40. Bc4 {[%clk 0:00:56.5]} 40... Rh1 {[%clk 0:01:03.8]} 41. Kg2 {[%clk 0:00:56]}
41... Rc1 {[%clk 0:00:49.8]} 42. Bf7 {[%clk 0:00:49.4]} 42... Rc3 {[%clk
0:00:44.8]} 43. Bc4 {[%clk 0:00:46.7]} 43... Kf5 {[%clk 0:00:38.4]} 44. Be2
{[%clk 0:00:25.4]} 44... Rxb3 {[%clk 0:00:31.6]} 45. Bxh5 {[%clk 0:00:24]} 45...
Rb4 {[%clk 0:00:21.2]} 46. Bd1 {[%clk 0:00:20.3]} 46... Kg6 {[%clk 0:00:17.6]}
47. Kh2 {[%clk 0:00:14.5]} 47... Kf5 {[%clk 0:00:12.8]} 48. Kg2 {[%clk
0:00:13.8]} 48... Rd4 {[%clk 0:00:13.1]} 49. Bf3 {[%clk 0:00:12]} 49... Rxa4
{[%clk 0:00:12.2]} 50. Bc6 {[%clk 0:00:09.4]} 50... Rb4 {[%clk 0:00:11.5]} 0-1

[Event "*** Titled Tuesday Blitz"]
[Site "Chess.com"]
[Date "2021.02.02"]
[Round "6"]
[White "Chessbard1972"]
[Black "rachidhuilda"]
[Result "1-0"]
[WhiteElo "2406"]
[BlackElo "2223"]
[TimeControl "180+1"]
[EndTime "11:09:28 PST"]
[Termination "Chessbard1972 won by resignation"]

1. e4 {[%clk 0:03:00.9]} 1... c5 {[%clk 0:02:54.3]} 2. Nf3 {[%clk 0:02:57.1]}
2... e6 {[%clk 0:02:54.3]} 3. d4 {[%clk 0:02:55.8]} 3... cxd4 {[%clk 0:02:54.5]}
4. Nxd4 {[%clk 0:02:56.4]} 4... a6 {[%clk 0:02:55]} 5. Nc3 {[%clk 0:02:55.9]}
5... Qc7 {[%clk 0:02:54.7]} 6. Be3 {[%clk 0:02:54.4]} 6... Bb4 {[%clk
0:02:47.1]} 7. Qd2 {[%clk 0:02:53.6]} 7... Nf6 {[%clk 0:02:46.8]} 8. Bd3 {[%clk
0:02:51.2]} 8... d5 {[%clk 0:02:46.9]} 9. f3 {[%clk 0:02:27.7]} 9... e5 {[%clk
0:02:42.9]} 10. O-O {[%clk 0:02:06.8]} 10... exd4 {[%clk 0:02:42]} 11. Bxd4
{[%clk 0:02:01.9]} 11... Bc5 {[%clk 0:02:12.4]} 12. Bxc5 {[%clk 0:01:39.7]}
12... Qxc5+ {[%clk 0:02:11.7]} 13. Kh1 {[%clk 0:01:40.6]} 13... dxe4 {[%clk
0:01:13.3]} 14. fxe4 {[%clk 0:01:22.9]} 14... O-O {[%clk 0:00:54.9]} 15. Rae1
{[%clk 0:01:20.8]} 15... Nc6 {[%clk 0:00:44.6]} 16. Nd5 {[%clk 0:01:11.7]} 16...
Nxd5 {[%clk 0:00:34.5]} 17. exd5 {[%clk 0:01:11.4]} 17... Nb4 {[%clk 0:00:33.3]}
18. Be4 {[%clk 0:01:04.4]} 18... Bd7 {[%clk 0:00:33.3]} 19. a3 {[%clk
0:00:59.2]} 19... Nxc2 {[%clk 0:00:30.8]} 20. Bxc2 {[%clk 0:00:56.3]} 20... Rae8
{[%clk 0:00:30.8]} 21. Qd3 {[%clk 0:00:54.1]} 21... g6 {[%clk 0:00:29.9]} 22.
Qd2 {[%clk 0:00:43.9]} 22... Bb5 {[%clk 0:00:29.7]} 23. Rg1 {[%clk 0:00:39]}
23... Rxe1 {[%clk 0:00:29.5]} 24. Rxe1 {[%clk 0:00:38.1]} 24... Re8 {[%clk
0:00:30]} 25. Rxe8+ {[%clk 0:00:35.6]} 25... Bxe8 {[%clk 0:00:30.9]} 26. h3
{[%clk 0:00:34.8]} 26... Bb5 {[%clk 0:00:29.7]} 27. Be4 {[%clk 0:00:32.7]} 27...
Qd6 {[%clk 0:00:28.7]} 28. Bf3 {[%clk 0:00:32.1]} 28... Bd7 {[%clk 0:00:28.3]}
29. b4 {[%clk 0:00:31.4]} 29... Qe5 {[%clk 0:00:27.5]} 30. Qc1 {[%clk
0:00:29.1]} 30... Kg7 {[%clk 0:00:26.1]} 31. Qd2 {[%clk 0:00:26.6]} 31... h5
{[%clk 0:00:25.7]} 32. Kg1 {[%clk 0:00:26]} 32... Qa1+ {[%clk 0:00:25]} 33. Kf2
{[%clk 0:00:25]} 33... Qe5 {[%clk 0:00:25.6]} 34. Qe3 {[%clk 0:00:22.5]} 34...
Qxe3+ {[%clk 0:00:25.6]} 35. Kxe3 {[%clk 0:00:22.4]} 35... Kf6 {[%clk
0:00:25.4]} 36. Kd4 {[%clk 0:00:22.4]} 36... b6 {[%clk 0:00:23]} 37. h4 {[%clk
0:00:21.8]} 37... Ke7 {[%clk 0:00:22.9]} 38. Be2 {[%clk 0:00:20]} 38... Kd6
{[%clk 0:00:23.3]} 39. Bxa6 {[%clk 0:00:19.1]} 39... Ba4 {[%clk 0:00:22.8]} 40.
Bc4 {[%clk 0:00:18.5]} 40... Bd1 {[%clk 0:00:22.6]} 41. Ba2 {[%clk 0:00:18]}
41... Ba4 {[%clk 0:00:21.9]} 42. Bc4 {[%clk 0:00:17.5]} 42... Kd7 {[%clk
0:00:16.6]} 43. Ke5 {[%clk 0:00:16.8]} 43... Ke7 {[%clk 0:00:15.8]} 44. g3
{[%clk 0:00:16.4]} 44... f6+ {[%clk 0:00:15.6]} 45. Kd4 {[%clk 0:00:14.6]} 45...
Kd6 {[%clk 0:00:16.5]} 46. Bd3 {[%clk 0:00:14.7]} 46... Be8 {[%clk 0:00:16.1]}
47. Bc2 {[%clk 0:00:12.3]} 47... g5 {[%clk 0:00:16.5]} 48. a4 {[%clk 0:00:11.3]}
48... Bd7 {[%clk 0:00:16.2]} 49. a5 {[%clk 0:00:10.7]} 49... bxa5 {[%clk
0:00:17.1]} 50. bxa5 {[%clk 0:00:10.6]} 50... Bb5 {[%clk 0:00:17.6]} 51. Bd3
{[%clk 0:00:10.1]} 51... Bxd3 {[%clk 0:00:15.2]} 52. Kxd3 {[%clk 0:00:09.8]}
52... Kxd5 {[%clk 0:00:15.8]} 53. a6 {[%clk 0:00:09.8]} 53... Kc6 {[%clk
0:00:15.9]} 54. Ke4 {[%clk 0:00:09.9]} 54... Kb6 {[%clk 0:00:14.5]} 55. Kf5
{[%clk 0:00:10.2]} 55... gxh4 {[%clk 0:00:14.4]} 56. gxh4 {[%clk 0:00:09.8]}
56... Kxa6 {[%clk 0:00:15.3]} 57. Kxf6 {[%clk 0:00:10.1]} 57... Kb7 {[%clk
0:00:16.2]} 58. Kg5 {[%clk 0:00:10.4]} 58... Kc7 {[%clk 0:00:17.1]} 59. Kxh5
{[%clk 0:00:10.8]} 59... Kd7 {[%clk 0:00:17.9]} 60. Kg6 {[%clk 0:00:11]} 60...
Ke7 {[%clk 0:00:18.5]} 61. Kg7 {[%clk 0:00:11.4]} 1-0